fUSD/lending_fUSD_20251126
["ID","MTS","AMOUNT","RATE_DAILY","PERIOD"]
[394954532,1764201038287,-500.0,0.0001554,2]
[394954533,1764201038298,-500.0,0.0001554,2]
[394954534,1764201038309,-500.0,0.0001554,2]
[394954535,1764201038319,-500.0,0.0001554,2]
[394954536,1764201038328,-500.0,0.0001554,2]
[394954537,1764201038338,-500.0,0.0001554,2]
[394954538,1764201038347,-500.0,0.0001554,2]
[394954539,1764201038357,-500.0,0.0001554,2]
[394954540,1764201038366,-17396.92181761,0.00015545,2]
[394954541,1764201038376,-150.0,0.00015547,2]
[394954542,1764201038385,-150.0,0.00015547,2]
[394954543,1764201038395,-150.0,0.00015547,2]
[394954544,1764201038404,-150.0,0.00015547,2]
[394954545,1764201038413,-150.60457273,0.00015547,2]
[394954546,1764201038423,-150.0,0.00015547,2]
[394954547,1764201038433,-500.0,0.00015549,2]
[394954548,1764201038442,-500.0,0.00015549,2]
[394954549,1764201038452,-500.0,0.00015549,2]
[394954550,1764201038461,-500.0,0.00015549,2]
[394954551,1764201038470,-500.0,0.00015549,2]
[394954552,1764201038480,-500.0,0.00015549,2]
[394954553,1764201038489,-500.0,0.00015549,2]
[394954554,1764201038498,-500.0,0.00015549,2]
[394954555,1764201038507,-500.0,0.00015549,2]
[394954556,1764201038517,-500.0,0.00015549,2]
[394954557,1764201038526,-500.0,0.00015549,2]
[394954558,1764201038535,-500.0,0.00015549,2]
[394954559,1764201038544,-500.0,0.00015549,2]
[394954560,1764201038554,-500.0,0.00015549,2]
[394954561,1764201038565,-500.0,0.00015549,2]
[394954562,1764201038574,-500.0,0.00015549,2]
[394954563,1764201038583,-530.31019318,0.00015549,2]
[394954564,1764201038592,-18468.2564,0.00015549,2]
[394954565,1764201038602,-1000.0,0.00015549,2]
[394954567,1764201038612,-3842.4231771,0.0001555,2]
[394954569,1764201038621,-2000.0,0.0001555,2]
[394954572,1764201038636,-200.0,0.0001555,2]
[394954574,1764201038645,-337.7158466,0.0001555,2]
[394954576,1764201038655,-213.3090706,0.0001555,2]
[394954577,1764201038664,-1000.0,0.0001555,2]
[394954580,1764201038673,-369.47303612,0.0001555,2]
[394954582,1764201038690,-630.52696388,0.0001555,2]
[394954583,1764201038699,-1000.0,0.0001555,2]
[394954584,1764201038708,-1000.0,0.0001555,2]
[394954585,1764201038717,-362.84506,0.0001555,2]
[394954586,1764201038727,-4792.06963947,0.0001555,2]
[394954587,1764201038737,-150.0,0.00015551,2]
[394954588,1764201038746,-150.0,0.00015556,2]
[394954589,1764201038755,-13799.7116889,0.00015556,2]
[394954590,1764201038765,-166.66,0.00015558,2]
[394954591,1764201038774,-4756.6385994,0.00015558,2]
[394954592,1764201038783,-150.0,0.00015566,2]
[394954593,1764201038793,-150.0,0.00015571,2]
[394954594,1764201038802,-150.0,0.00015571,2]
[394954595,1764201038812,-386.16044328,0.00015573,2]
[394954596,1764201038821,-223.33445089,0.00015573,2]
[394954597,1764201038835,-172.21774454,0.00015573,2]
[394954598,1764201038844,-500.0,0.00015573,2]
[394954599,1764201038854,-361.94821179,0.00015573,2]
[394954600,1764201038863,-163.20225451,0.00015573,2]
[394954601,1764201038873,-500.0,0.00015573,2]
[394954602,1764201038883,-500.0,0.00015573,2]
[394954603,1764201038896,-500.0,0.00015573,2]
[394954604,1764201038909,-500.0,0.00015573,2]
[394954605,1764201038919,-500.0,0.00015573,2]
[394954606,1764201038933,-500.0,0.00015573,2]
[394954607,1764201038942,-500.0,0.00015573,2]
[394954608,1764201038952,-498.423967,0.00015573,2]
[394954609,1764201038961,-606.04989926,0.00015573,2]
[394954610,1764201038973,-500.0,0.00015573,2]
[394954611,1764201038982,-500.0,0.00015573,2]
[394954612,1764201038991,-314.2619767,0.00015573,2]
[394954613,1764201039004,-500.0,0.00015573,2]
[394954614,1764201039013,-500.0,0.00015573,2]
[394954615,1764201039023,-500.0,0.00015573,2]
[394954616,1764201039035,-500.0,0.00015573,2]
[394954617,1764201039045,-500.0,0.00015573,2]
[394954618,1764201039054,-500.0,0.00015573,2]
[394954619,1764201039065,-500.28924973,0.00015573,2]
[394954620,1764201039075,-150.0,0.00015575,2]
[394954621,1764201039085,-150.0,0.00015587,2]
[394954622,1764201039094,-150.0,0.00015594,2]
[394954623,1764201039103,-150.0,0.00015599,2]
[394954624,1764201039113,-150.0,0.000156,2]
[394954625,1764201039122,-177.74,0.000156,2]
[394954626,1764201039132,-177.74,0.000156,2]
[394954627,1764201039141,-177.74,0.000156,2]
[394954628,1764201039150,-177.74,0.000156,2]
[394954629,1764201039160,-177.74,0.000156,2]
[394954630,1764201039169,-150.0,0.00015601,2]
[394954631,1764201039179,-150.0,0.00015622,2]
[394954632,1764201039188,-150.0,0.00015623,2]
[394954633,1764201039197,-150.0,0.00015627,2]
[394954634,1764201039207,-150.0,0.00015637,2]
[394954635,1764201039217,-500.0,0.00015644,2]
[394954636,1764201039229,-500.0,0.00015644,2]
[394954637,1764201039239,-500.0,0.00015644,2]
[394954638,1764201039248,-500.0,0.00015644,2]
[394954639,1764201039258,-150.0,0.00015645,2]
[394954640,1764201039267,-150.0,0.00015647,2]
[394954641,1764201039277,-500.0,0.00015649,2]
[394954642,1764201039286,-500.0,0.00015649,2]
[394954643,1764201039304,-500.0,0.00015649,2]
[394954644,1764201039316,-559.9560495,0.00015649,2]
[394954645,1764201039326,-151.0,0.00015649,2]
[394954646,1764201039336,-151.0,0.00015649,2]
[394954647,1764201039346,-151.0,0.00015649,2]
[394954648,1764201039355,-151.0,0.00015649,2]
[394954649,1764201039364,-151.0,0.00015649,2]
[394954650,1764201039373,-151.0,0.00015649,2]
[394954651,1764201039383,-150.0,0.0001565,2]
[394954652,1764201039392,-362.84506,0.0001565,2]
[394954653,1764201039403,-511.0,0.00015664,2]
[394954654,1764201039413,-150.0,0.00015665,2]
[394954655,1764201039423,-150.0,0.0001567,2]
[394954656,1764201039432,-537.0,0.00015675,2]
[394954657,1764201039442,-150.0,0.00015678,2]
[394954658,1764201039454,-500.0,0.0001568,2]
[394954659,1764201039463,-248.05767948,0.0001568,2]
[394954660,1764201039472,-526.54635102,0.0001568,2]
[394954661,1764201039482,-500.0,0.0001568,2]
[394954662,1764201039491,-500.0,0.0001568,2]
[394954663,1764201039501,-151.99063236,0.00015681,2]
[394954664,1764201039511,-150.0,0.00015681,2]
[394954665,1764201039520,-150.0,0.00015681,2]
[394954666,1764201039530,-268.2412023,0.00015681,2]
[394954667,1764201039540,-150.0,0.00015681,2]
[394954668,1764201039550,-251.87899084,0.00015681,2]
[394954669,1764201039558,-200.0,0.00015681,2]
[394954670,1764201039567,-500.0,0.00015681,2]
[394954671,1764201039577,-673.0,0.00015681,2]
[394954672,1764201039586,-500.0,0.00015681,2]
[394954673,1764201039596,-150.0,0.00015684,2]
[394954674,1764201039605,-150.0,0.00015684,2]
[394954675,1764201039615,-150.0,0.00015684,2]
[394954676,1764201039624,-150.0,0.00015684,2]
[394954677,1764201039633,-150.0,0.00015684,2]
[394954678,1764201039643,-150.0,0.00015684,2]
[394954679,1764201039652,-150.0,0.00015687,2]
[394954680,1764201039661,-150.0,0.0001569,2]
[394954681,1764201039672,-150.0,0.00015694,2]
[394954682,1764201039682,-150.0,0.00015705,2]
[394954683,1764201039692,-200.0,0.00015706,2]
[394954684,1764201039702,-150.0,0.00015712,2]
[394954685,1764201039713,-150.0,0.00015712,2]
[394954686,1764201039723,-151.0,0.00015716,2]
[394954687,1764201039732,-150.0,0.00015718,2]
[394954688,1764201039743,-6914.74584215,0.00015719,2]
[394954689,1764201039752,-151.0,0.00015719,2]
[394954690,1764201039762,-151.0,0.00015719,2]
[394954691,1764201039771,-1782.243773,0.00015719,2]
[394954692,1764201039781,-150.0,0.00015733,2]
[394954693,1764201039791,-150.0,0.00015735,2]
[394954694,1764201039801,-150.0,0.00015737,2]
[394954695,1764201039811,-150.0,0.00015741,2]
[394954696,1764201039829,-150.0,0.00015742,2]
[394954697,1764201039842,-150.0,0.00015761,2]
[394954698,1764201039851,-150.0,0.00015766,2]
[394954699,1764201039861,-666.0,0.00015771,2]
[394954700,1764201039871,-500.0,0.00015771,2]
[394954701,1764201039880,-500.0,0.00015771,2]
[394954702,1764201039890,-500.0,0.00015771,2]
[394954703,1764201039899,-386.90211998,0.00015771,2]
[394954704,1764201039908,-500.0,0.00015771,2]
[394954705,1764201039918,-500.0,0.00015771,2]
[394954706,1764201039929,-500.0,0.00015771,2]
[394954707,1764201039939,-500.0,0.00015771,2]
[394954708,1764201039948,-500.0,0.00015771,2]
[394954709,1764201039957,-500.0,0.00015771,2]
[394954710,1764201039967,-500.0,0.00015771,2]
[394954711,1764201039976,-500.0,0.00015771,2]
[394954712,1764201039985,-296.66311778,0.00015771,2]
[394954713,1764201039994,-151.0,0.00015772,2]
[394954714,1764201040005,-152.951844,0.00015772,2]
[394954715,1764201040014,-151.0,0.00015772,2]
[394954716,1764201040023,-151.0,0.00015772,2]
[394954717,1764201040032,-151.0,0.00015772,2]
[394954718,1764201040041,-151.0,0.00015772,2]
[394954719,1764201040050,-151.0,0.00015772,2]
[394954720,1764201040059,-269.0,0.00015772,2]
[394954721,1764201040068,-383.679288,0.00015772,2]
[394954722,1764201040078,-383.679288,0.00015772,2]
[394954723,1764201040087,-383.679288,0.00015772,2]
[394954724,1764201040096,-383.679288,0.00015772,2]
[394954725,1764201040105,-150.0,0.00015773,2]
[394954726,1764201040115,-150.0,0.00015779,2]
[394954727,1764201040124,-362.84506,0.0001578,2]
[394954728,1764201040133,-150.0,0.00015787,2]
[394954729,1764201040142,-150.0,0.00015789,2]
[394954730,1764201040151,-150.0,0.0001579,2]
[394954731,1764201040161,-150.0,0.00015797,2]
[394954732,1764201040170,-157.268538,0.000158,2]
[394954733,1764201040179,-151.0,0.000158,2]
[394954734,1764201040188,-151.0,0.000158,2]
[394954735,1764201040198,-151.0,0.000158,2]
[394954736,1764201040207,-1160.97,0.00015808,2]
[394954737,1764201040216,-150.0,0.00015814,2]
[394954738,1764201040225,-150.0,0.00015817,2]
[394954739,1764201040235,-500.0,0.00015817,2]
[394954740,1764201040244,-500.0,0.00015817,2]
[394954741,1764201040253,-500.0,0.00015817,2]
[394954742,1764201040263,-150.0,0.00015818,2]
[394954743,1764201040272,-161.19745522,0.00015818,2]
[394954744,1764201040282,-150.0,0.00015818,2]
[394954745,1764201040291,-500.0,0.00015818,2]
[394954746,1764201040301,-673.0,0.00015818,2]
[394954747,1764201040311,-500.0,0.00015818,2]
[394954748,1764201040320,-153.917634,0.0001582,2]
[394954749,1764201040329,-151.0,0.0001582,2]
[394954750,1764201040527,-150.0,0.00015821,2]
[394954751,1764201040536,-150.0,0.00015821,2]
[394954752,1764201040546,-150.0,0.00015821,2]
[394954753,1764201040556,-150.0,0.00015821,2]
[394954754,1764201040566,-192.51,0.00015822,2]
[394954755,1764201040575,-150.0,0.00015824,2]
[394954756,1764201040585,-150.0,0.00015837,2]
[394954757,1764201040594,-150.0,0.00015838,2]
[394954758,1764201040603,-500.0,0.00015839,2]
[394954759,1764201040613,-263.75639361,0.00015839,2]
[394954760,1764201040623,-500.0,0.00015839,2]
[394954761,1764201040632,-500.0,0.00015839,2]
[394954762,1764201040642,-500.0,0.00015839,2]
[394954763,1764201040652,-178.62833561,0.00015839,2]
[394954764,1764201040661,-500.0,0.00015839,2]
[394954765,1764201040670,-477.23987174,0.00015839,2]
[394954766,1764201040679,-500.0,0.00015839,2]
[394954767,1764201040688,-71703.61485765,0.0001584,2]
[394954768,1764201040699,-198.409195,0.0001584,2]
[394954769,1764201040708,-198.409195,0.0001584,2]
[394954770,1764201040718,-198.409195,0.0001584,2]
[394954771,1764201040728,-198.409195,0.0001584,2]
[394954772,1764201040738,-151.0,0.0001584,2]
[394954773,1764201040747,-151.0,0.0001584,2]
[394954774,1764201040756,-151.0,0.0001584,2]
[394954775,1764201040765,-151.0,0.0001584,2]
[394954776,1764201040775,-151.0,0.0001584,2]
[394954777,1764201040785,-151.0,0.0001584,2]
[394954778,1764201040795,-151.0,0.0001584,2]
[394954779,1764201040807,-151.0,0.0001584,2]
[394954780,1764201040818,-151.0,0.0001584,2]
[394954781,1764201040827,-1782.243773,0.0001584,2]
[394954783,1764201040838,-153.55,0.00015841,2]
[394954785,1764201040848,-150.0,0.00015845,2]
[394954786,1764201040857,-150.0,0.00015854,2]
[394954787,1764201040866,-150.0,0.00015854,2]
[394954788,1764201040877,-150.0,0.00015854,2]
[394954789,1764201040890,-150.0,0.00015854,2]
[394954790,1764201040899,-150.0,0.00015862,2]
[394954791,1764201040909,-200.0,0.00015863,2]
[394954792,1764201040921,-150.0,0.00015869,2]
[394954793,1764201040933,-150.0,0.00015872,2]
[394954794,1764201040943,-150.0,0.00015886,2]
[394954795,1764201040952,-150.0,0.00015887,2]
[394954796,1764201040961,-151.0,0.00015897,2]
[394954797,1764201040972,-243.88679735,0.000159,2]
[394954798,1764201040981,-151.0,0.000159,2]
[394954799,1764201040991,-151.0,0.000159,2]
[394954801,1764201041001,-175.11421792,0.000159,2]
[394954803,1764201041010,-362.84507,0.000159,2]
[394954805,1764201041019,-383.679288,0.000159,2]
[394954806,1764201041029,-383.679288,0.000159,2]
[394954807,1764201041040,-383.679288,0.000159,2]
[394954808,1764201041050,-383.679288,0.000159,2]
[394954809,1764201041059,-953.31555873,0.000159,2]
[394954810,1764201041068,-953.31555868,0.000159,2]
[394954811,1764201041077,-953.31555868,0.000159,2]
[394954812,1764201041087,-150.0,0.000159,2]
[394954813,1764201041097,-150.0,0.0001591,2]
[394954814,1764201041106,-150.0,0.00015911,2]
[394954815,1764201041115,-150.0,0.00015913,2]
[394954816,1764201041124,-150.0,0.00015928,2]
[394954817,1764201041133,-150.0,0.00015934,2]
[394954818,1764201041142,-150.0,0.00015937,2]
[394954819,1764201041152,-300.0,0.00015948,2]
[394954820,1764201041161,-500.0,0.00015954,2]
[394954821,1764201041170,-500.0,0.00015954,2]
[394954822,1764201041179,-500.0,0.00015954,2]
[394954823,1764201041188,-204.9782244,0.00015955,2]
[394954824,1764201041197,-209.83106324,0.00015955,2]
[394954825,1764201041207,-500.0,0.00015955,2]
[394954826,1764201041216,-673.0,0.00015955,2]
[394954827,1764201041225,-500.0,0.00015955,2]
[394954828,1764201041234,-151.0,0.00015955,2]
[394954829,1764201041243,-151.0,0.00015955,2]
[394954830,1764201041253,-151.0,0.00015955,2]
[394954831,1764201041262,-282.400793,0.00015955,2]
[394954832,1764201041271,-150.0,0.00015956,2]
[394954833,1764201041285,-150.0,0.00015958,2]
[394954834,1764201041295,-200.0,0.00015958,2]
[394954835,1764201041307,-150.0,0.00015958,2]
[394954836,1764201041317,-150.0,0.00015958,2]
[394954837,1764201041326,-150.0,0.00015958,2]
[394954838,1764201041336,-150.0,0.00015967,2]
[394954839,1764201041346,-500.0,0.00015973,2]
[394954840,1764201041356,-500.0,0.00015973,2]
[394954841,1764201041365,-150.0,0.00015981,2]
[394954842,1764201041375,-150.0,0.00015984,2]
[394954843,1764201041384,-150.0,0.00015987,2]
[394954844,1764201041394,-6914.74584215,0.00015991,2]
[394954845,1764201041404,-150.0,0.00015995,2]
[394954846,1764201041413,-151.0,0.00015997,2]
[394954847,1764201041423,-153.62709606,0.00015997,2]
[394954848,1764201041432,-500.0,0.00015999,2]
[394954849,1764201041441,-500.0,0.00015999,2]
[394954850,1764201041450,-500.0,0.00015999,2]
[394954851,1764201041460,-500.0,0.00015999,2]
[394954852,1764201041469,-500.0,0.00015999,2]
[394954853,1764201041479,-615.9526452,0.00015999,2]
[394954854,1764201041488,-500.0,0.00015999,2]
[394954855,1764201041497,-500.0,0.00015999,2]
[394954856,1764201041506,-500.42317162,0.00015999,2]
[394954857,1764201041515,-500.0,0.00015999,2]
[394954858,1764201041525,-500.0,0.00015999,2]
[394954859,1764201041534,-500.0,0.00015999,2]
[394954860,1764201041544,-500.0,0.00015999,2]
[394954861,1764201041553,-19611.74911413,0.00016,2]
[394954862,1764201041699,-101667.54385215,0.00016,2]
[394954863,1764201041713,-143266.58107531,0.00016,2]
[394954864,1764201041726,-721.7976713,0.00016,2]
[394954865,1764201041739,-371.68673648,0.00016,2]
[394954866,1764201041751,-961.6541481,0.00016,2]
[394954867,1764201041765,-31259.74740253,0.00016,2]
[394954868,1764201041774,-85317.57701424,0.00016,4]
[394954869,1764201041782,-151.0,0.00016,2]
[394954870,1764201041791,-151.0,0.00016,2]
[394954871,1764201041801,-151.0,0.00016,2]
[394954872,1764201041810,-151.0,0.00016,2]
[394954873,1764201041820,-151.0,0.00016,2]
[394954874,1764201041829,-151.0,0.00016,2]
[394954875,1764201041839,-200.0,0.00016,2]
[394954876,1764201041848,-152.155284,0.00016,2]
[394954877,1764201041859,-198.409195,0.00016,2]
[394954878,1764201041869,-198.409195,0.00016,2]
[394954879,1764201041879,-198.409195,0.00016,2]
[394954880,1764201041888,-198.409195,0.00016,2]
[394954881,1764201041898,-198.409195,0.00016,2]
[394954882,1764201041907,-198.409195,0.00016,2]
[394954883,1764201041916,-198.409195,0.00016,2]
[394954884,1764201041928,-198.409195,0.00016,2]
[394954885,1764201041938,-151.0,0.00016,2]
[394954886,1764201041946,-151.0,0.00016,2]
[394954887,1764201041956,-154.171974,0.00016,2]
[394954888,1764201041965,-200.0,0.00016,2]
[394954889,1764201041974,-202.332436,0.00016,2]
[394954890,1764201041983,-169.651907,0.00016,2]
[394954891,1764201041992,-151.0,0.00016,2]
[394954892,1764201042002,-151.0,0.00016,2]
[394954893,1764201042012,-151.0,0.00016,2]
[394954894,1764201042024,-151.0,0.00016,2]
[394954895,1764201042033,-213.523928,0.00016,2]
[394954896,1764201042043,-154.900923,0.00016,2]
[394954897,1764201042052,-151.943107,0.00016,2]
[394954898,1764201042061,-151.0,0.00016,2]
[394954899,1764201042070,-151.0,0.00016,2]
[394954900,1764201042079,-151.0,0.00016,2]
[394954901,1764201042090,-151.0,0.00016,2]
[394954902,1764201042101,-151.0,0.00016,2]
[394954903,1764201042110,-151.0,0.00016,2]
[394954904,1764201042121,-383.679288,0.00016,2]
[394954905,1764201042130,-383.679288,0.00016,2]
[394954906,1764201042139,-383.679288,0.00016,2]
[394954907,1764201042150,-383.679288,0.00016,2]
[394954908,1764201042160,-383.679288,0.00016,2]
[394954909,1764201042170,-383.679288,0.00016,2]
[394954910,1764201042180,-383.679288,0.00016,2]
[394954911,1764201042191,-383.679288,0.00016,2]
[394954912,1764201042200,-1782.243773,0.00016,2]
[394954913,1764201042210,-1782.243773,0.00016,2]
[394954914,1764201042220,-150.0,0.00016003,2]
[394954915,1764201042231,-150.0,0.00016005,2]
[394954916,1764201042241,-150.0,0.00016012,2]
[394954917,1764201042251,-150.0,0.00016016,2]
[394954918,1764201042261,-200.0,0.00016021,2]
[394954919,1764201042270,-192.51,0.00016022,2]
[394954920,1764201042280,-150.0,0.00016024,2]
[394954921,1764201042290,-150.0,0.00016029,2]
[394954922,1764201042299,-150.0,0.00016037,2]
[394954923,1764201042308,-153.55,0.00016039,2]
[394954924,1764201042317,-150.0,0.0001604,2]
[394954925,1764201042326,-150.0,0.00016043,2]
[394954926,1764201042336,-150.0,0.00016048,2]
[394954927,1764201042348,-150.0,0.00016053,2]
[394954928,1764201042357,-4561.82,0.00016055,2]
[394954929,1764201042369,-1436.0,0.00016065,2]
[394954930,1764201042378,-150.0,0.00016067,2]
[394954931,1764201042388,-150.0,0.00016077,2]
[394954932,1764201042399,-150.0,0.0001608,2]
[394954933,1764201042408,-1160.97,0.00016082,2]
[394954934,1764201042418,-591.8205701,0.00016082,2]
[394954935,1764201042427,-526.37125035,0.00016084,2]
[394954936,1764201042437,-150.0,0.00016087,2]
[394954937,1764201042446,-400.0,0.00016091,2]
[394954938,1764201042455,-500.0,0.00016091,2]
[394954939,1764201042465,-161.93174976,0.00016091,2]
[394954940,1764201042474,-444.36588463,0.00016092,2]
[394954941,1764201042483,-673.0,0.00016092,2]
[394954942,1764201042493,-169.1481329,0.00016092,2]
[394954943,1764201042502,-150.0,0.00016092,2]
[394954944,1764201042512,-154.55374578,0.00016095,2]
[394954945,1764201042521,-165.94280757,0.00016095,2]
[394954946,1764201042531,-150.0,0.00016095,2]
[394954947,1764201042541,-150.0,0.00016101,2]
[394954948,1764201042550,-500.0,0.00016121,2]
[394954949,1764201042559,-1117.22746085,0.00016121,2]
[394954950,1764201042569,-172.50518283,0.00016121,2]
[394954951,1764201042579,-500.0,0.00016121,2]
[394954952,1764201042588,-1000.0,0.00016121,2]
[394954953,1764201042597,-1000.0,0.00016121,2]
[394954954,1764201042607,-510.83585397,0.00016121,2]
[394954955,1764201042617,-1000.0,0.00016121,2]
[394954956,1764201042626,-500.0,0.00016121,2]
[394954957,1764201042636,-500.0,0.00016121,2]
[394954958,1764201042646,-1000.0,0.00016121,2]
[394954959,1764201042655,-1000.0,0.00016121,2]
[394954960,1764201042665,-1000.0,0.00016121,2]
[394954961,1764201042674,-150.0,0.00016123,2]
[394954962,1764201042684,-150.0,0.00016125,2]
[394954963,1764201042693,-150.0,0.00016137,2]
[394954964,1764201042703,-150.0,0.00016137,2]
[394954965,1764201042712,-150.0,0.00016137,2]
[394954966,1764201042721,-150.0,0.00016137,2]
[394954967,1764201042731,-150.0,0.00016137,2]
[394954968,1764201042740,-150.0,0.00016137,2]
[394954969,1764201042750,-150.0,0.00016149,2]
[394954970,1764201042759,-150.0,0.00016151,2]
[394954971,1764201042769,-200.0,0.0001616,2]
[394954972,1764201042778,-200.0,0.0001616,2]
[394954973,1764201042787,-150.0,0.00016173,2]
[394954974,1764201042797,-150.0,0.00016179,2]
[394954975,1764201042806,-200.0,0.00016181,2]
[394954976,1764201042815,-150.0,0.00016182,2]
[394954977,1764201042824,-150.0,0.00016187,2]
[394954978,1764201042832,-150.0,0.00016194,2]
[394954979,1764201042842,-150.0,0.00016197,2]
[394954980,1764201042851,-500.0,0.00016199,2]
[394954981,1764201042860,-500.0,0.00016199,2]
[394954982,1764201042869,-158.42900115,0.000162,2]
[394954983,1764201042879,-25238.7653097,0.000162,5]
[394954984,1764201042892,-754.03002222,0.000162,5]
[394954985,1764201042908,-29680.12560239,0.000162,5]
[394954986,1764201042917,-151.0,0.000162,2]
[394954987,1764201042930,-151.0,0.000162,2]
[394954988,1764201042939,-151.0,0.000162,2]
[394954989,1764201042949,-150.0,0.00016207,2]
[394954990,1764201042958,-1877.0,0.00016215,2]
[394954991,1764201042969,-166.82,0.00016219,2]
[394954992,1764201042979,-150.0,0.00016221,2]
[394954993,1764201042989,-1436.0,0.00016223,2]
[394954994,1764201042998,-198.409195,0.00016223,2]
[394954995,1764201043008,-198.409195,0.00016223,2]
[394954996,1764201043017,-198.409195,0.00016223,2]
[394954997,1764201043027,-198.409195,0.00016223,2]
[394954998,1764201043036,-156.596061,0.00016223,2]
[394954999,1764201043045,-150.0,0.00016226,2]
[394955000,1764201043054,-500.0,0.00016228,2]
[394955001,1764201043063,-673.0,0.00016229,2]
[394955002,1764201043072,-150.0,0.00016231,2]
[394955003,1764201043082,-243.88679735,0.00016233,2]
[394955004,1764201043091,-150.0,0.00016234,2]
[394955005,1764201043101,-189.54,0.00016236,2]
[394955007,1764201043110,-150.0,0.00016237,2]
[394955009,1764201043120,-150.0,0.00016245,2]
[394955010,1764201043130,-150.0,0.0001625,2]
[394955011,1764201043139,-256.6728402,0.00016258,2]
[394955012,1764201043148,-150.0,0.00016258,2]
[394955013,1764201043157,-150.0,0.00016262,2]
[394955014,1764201043167,-151.0,0.00016264,2]
[394955015,1764201043185,-151.0,0.00016264,2]
[394955016,1764201043195,-6914.74584215,0.00016264,2]
[394955017,1764201043205,-151.0,0.00016264,2]
[394955018,1764201043214,-151.0,0.00016264,2]
[394955019,1764201043223,-383.679288,0.00016264,2]
[394955021,1764201043233,-383.679288,0.00016264,2]
[394955023,1764201043243,-383.679288,0.00016264,2]
[394955025,1764201043252,-383.679291,0.00016264,2]
[394955026,1764201043261,-1782.243773,0.00016264,2]
[394955027,1764201043271,-150.0,0.00016269,2]
[394955028,1764201043280,-150.0,0.00016271,2]
[394955029,1764201043289,-150.0,0.00016279,2]
[394955030,1764201043298,-204.72686363,0.00016279,2]
[394955031,1764201043466,-253.9679583,0.00016279,2]
[394955032,1764201043476,-250.0,0.00016279,2]
[394955033,1764201043486,-300.0,0.00016279,2]
[394955034,1764201043496,-364.81905805,0.00016279,2]
[394955035,1764201043507,-150.0,0.00016287,2]
[394955036,1764201043517,-1600.0,0.0001629,2]
[394955037,1764201043527,-150.0,0.0001629,2]
[394955038,1764201043538,-150.0,0.00016292,2]
[394955039,1764201043547,-1877.0,0.00016294,2]
[394955040,1764201043556,-3989.0,0.000163,2]
[394955041,1764201043566,-150.0,0.00016307,2]
[394955042,1764201043575,-150.0,0.00016316,2]
[394955043,1764201043587,-150.0,0.00016316,2]
[394955044,1764201043596,-1877.0,0.00016317,2]
[394955045,1764201043607,-150.0,0.00016318,2]
[394955046,1764201043616,-666.0,0.00016319,2]
[394955047,1764201043625,-200.0,0.00016322,2]
[394955048,1764201043634,-200.0,0.00016322,2]
[394955049,1764201043643,-1877.0,0.00016327,2]
[394955050,1764201043654,-150.0,0.00016337,2]